Cogmind - Beta 13 @@@ ROGUE MODE // 2024.04.13 @ 12:13:57 Player: Red_Zig Result: Self-destructed Performance ------------- Evolutions (2) 1000 Regions Visited (7) 1400 Robots Destroyed (76) 380 Value Destroyed (1835) 1835 Prototype IDs (24) 480 Alien Tech Used (0) 0 Bonus (554) 554 TOTAL SCORE: 5649 Bonus ------- High Alert Combat Kills 44 Follower Combat Kills 210 Aligned with FarCom 300 Cogmind --------- Core Integrity 54/550 Matter 285/300 Energy 100/100 System Corruption 0% Temperature Cool (0) Movement Core (350) Ox6 Location -8/Materials Parts ------- > --- POWER (1) -------- (None) > --- PROPULSION (4) --- (None) > --- UTILITY (4) ------ Large Storage Unit Signal Interpreter Hacking Suite > --- WEAPON (2) ------- (None) > --- INVENTORY (15) --- Large Matter Pod (150) Large Matter Pod (150) Weight Redist. System Propulsion Shielding Medium Armor Plating Bomb Drone Bay Light Assault Rifle Grenade Launcher Missile Launcher Katana Peak State ------------ > --- POWER ------------ Cooled Ion Engine > --- PROPULSION ------- Light Treads Light Treads Makeshift Leg Makeshift Leg > --- UTILITY ---------- Large Storage Unit Signal Interpreter > --- WEAPON ----------- Light Assault Rifle Light Assault Rifle > --- INVENTORY -------- Light Nuclear Core Heat Sink Large Matter Pod Large Matter Pod Weight Redist. System Structural Scanner Structural Scanner Seismic Detector Bomb Drone Bay Assault Rifle Assault Rifle Light Assault Rifle Heavy Assault Rifle Grenade Launcher [Rating: 20] Favorites ----------- Power Ion Engine Engine Ion Engine Power Core Light Nuclear Core Propulsion Light Treads Treads Light Treads Leg Makeshift Leg Utility Large Storage Unit Device Seismic Detector Storage Large Storage Unit Processor Signal Interpreter Hackware Hacking Suite Weapon Assault Rifle Energy Gun EM Shotgun Ballistic Gun Assault Rifle Launcher Grenade Launcher Special Weapon Field Lobotomy Kit Build | -11 -10 -10 -9 -9 -9 -8 -8 ------- Run | Yrd Mat Min Mat Min Exi Min Mat Slots Evolved 4 | . . . 2 . . . 2 Power . | . . . . . . . . Propulsion 2 | . . . 2 . . . . Utility 2 | . . . . . . . 2 Weapon . | . . . . . . . . Parts Attached 49 | 6 5 4 19 8 . . 7 Power 4 | 1 1 . 1 1 . . . Engine 3 | 1 1 . 1 . . . . Core 1 | . . . . 1 . . . Reactor . | . . . . . . . . Propulsion 19 | 2 2 . 11 3 . . 1 Treads 15 | . 2 . 9 3 . . 1 Leg 4 | 2 . . 2 . . . . Wheel . | . . . . . . . . Hover . | . . . . . . . . Flight . | . . . . . . . . Utility 7 | 1 2 2 . . . . 2 Device 2 | . . 1 . . . . 1 Storage 3 | 1 2 . . . . . . Processor 1 | . . 1 . . . . . Hackware 1 | . . . . . . . 1 Protection . | . . . . . . . . Artifact . | . . . . . . . . Weapon 19 | 2 . 2 7 4 . . 4 Energy Gun 1 | . . . . . . . 1 Energy Cannon . | . . . . . . . . Ballistic Gun 14 | 2 . 2 6 2 . . 2 Ballistic Cannon . | . . . . . . . . Launcher 3 | . . . 1 2 . . . Special Weapon 1 | . . . . . . . 1 Impact Weapon . | . . . . . . . . Slashing Weapon . | . . . . . . . . Piercing Weapon . | . . . . . . . . Special Melee Weapon . | . . . . . . . . Unidentified Prototypes 1 | . . . 1 . . . . Parts Lost 31 | . 2 2 10 5 . . 12 Power 4 | . 1 . 1 1 . . 1 Propulsion 15 | . 1 . 6 4 . . 4 Utility 1 | . . . . . . . 1 Weapon 11 | . . 2 3 . . . 6 Highest Loss Streak 9 | . 1 1 2 3 . . 9 To Critical Strikes 1 | . . . . . . . 1 Average Slot Usage (%) 87 | . 84 94 84 87 88 88 87 Engine 8 | . 13 14 9 2 . . . Core 2 | . . . . 1 11 11 8 Treads 27 | . 21 28 26 39 33 33 28 Leg 2 | . 6 . 4 . . . . Device 2 | . . 8 . . . . 8 Storage 12 | . 14 14 11 11 11 11 9 Processor 6 | . . 1 11 11 11 11 9 Ballistic Gun 23 | . 28 26 21 21 22 22 16 Naked Turns . | . . . . . . . . Heaviest Build 33 | 12 29 30 33 33 29 29 30 Greatest Support 80 | 20 40 40 80 80 60 60 80 Greatest Overweight (x) 9 | . 1 . 9 . . . 1 Average Overweight (x) . | . . . . . . . . Largest Inventory Capacity 15 | 8 15 15 15 15 15 15 15 Average Capacity 14 | 6 14 15 15 15 15 15 15 Most Carried 15 | 5 15 15 15 14 13 13 14 Average Carried 13 | 3 10 14 14 13 12 13 12 Final Capacity 15 | 8 15 15 15 15 15 15 15 Final Carried 15 | 3 15 14 14 12 13 13 11 Class Distribution -------------------- 57% | Scavenger-Mutant 42% | Mutant Dominant Class ---------------- Mutant | -10/Materials Mutant | -10/Mines Scavenger-Mutant | -9/Materials Scavenger-Mutant | -9/Mines Scavenger-Mutant | -9/Exiles Scavenger-Mutant | -8/Mines Scavenger-Mutant | -8/Materials Resources | -11 -10 -10 -9 -9 -9 -8 -8 ----------- Run | Yrd Mat Min Mat Min Exi Min Mat Matter Collected 1955 | 228 452 325 645 176 . . 129 Remotely . | . . . . . . . . Salvage Created 2298 | . 538 75 1275 223 . . 187 Parts 166 | . 35 5 89 17 . . 20 Haulers Intercepted 6 | . 1 . 4 . . . 1 Recyclers Shooed . | . . . . . . . . Parts Field Recycled . | . . . . . . . . Retrieved Matter . | . . . . . . . . Parts Self-Destructed . | . . . . . . . . Prevented . | . . . . . . . . Kills | -11 -10 -10 -9 -9 -9 -8 -8 ------- Run | Yrd Mat Min Mat Min Exi Min Mat Combat Hostiles Destroyed 58 | . 11 3 30 10 . . 4 Guns 51 | . 11 3 25 8 . . 4 AOE 7 | . . . 5 2 . . . Classes Destroyed 14 | . 5 1 5 2 . . 1 Worker 1 | . . . 1 . . . . Tunneler 1 | . 1 . . . . . . Hauler 6 | . 1 . 4 . . . 1 Recycler 1 | . . 1 . . . . . Operator 2 | . . . 1 . . . 1 Watcher 8 | . 3 . 4 . . . 1 Swarmer 22 | . 2 3 9 5 . . 3 Grunt 22 | . 9 . 10 3 . . . Brawler 1 | . . . 1 . . . . Duelist 1 | . . . 1 . . . . Sentry 9 | . . . 9 . . . . Demolisher 1 | . . . . 1 . . . Specialist 1 | . . . . . . . 1 Assembled 1 | . . . . 1 . . . Best Kill Streak 8 | . 4 3 8 3 . . 3 Combat Bots Only 6 | . 4 3 6 3 . . 2 Max Kills in Single Turn 2 | . 1 1 2 1 . . 1 Gunslinging . | . . . . . . . . Exploded 2 | . . . 2 1 . . . Melee . | . . . . . . . . Uniques/NPCs Destroyed . | . . . . . . . . Combat | -11 -10 -10 -9 -9 -9 -8 -8 -------- Run | Yrd Mat Min Mat Min Exi Min Mat Hostile Shots Fired 420 | . 70 21 185 57 . . 87 Missed 111 | . 17 5 51 18 . . 20 Damage Taken 4482 | . 569 180 1740 519 . . 1474 Core 924 | . 118 12 209 89 . . 496 Absorbed by Shields . | . . . . . . . . Core Remaining (%) 57 | 100 . 48 . . . 25 . Volleys Fired 242 | . 51 12 126 25 . . 28 Largest 2 | . 2 2 2 2 . . 2 Hottest 65 | . 40 40 43 50 . . 65 Shots Fired 468 | . 102 18 247 49 . . 52 Gun 460 | . 102 18 244 47 . . 49 Cannon . | . . . . . . . . Launcher 5 | . . . 3 2 . . . Special 3 | . . . . . . . 3 Kinetic 450 | . 102 18 244 47 . . 39 Thermal . | . . . . . . . . Explosive 5 | . . . 3 2 . . . Electromagnetic 10 | . . . . . . . 10 Robot Hit Streak 20 | . 14 5 20 9 . . 11 Robot Miss Streak 5 | . 4 4 5 2 . . 4 Penetration Max . | . . . . . . . . Secondary Targets 4 | . 1 . 1 . . . 2 Max Gunslinging Chain 1 | . 1 . 1 . . . 1 Shots Hit Robots 302 | . 63 8 173 25 . . 33 Core Hits 142 | . 28 7 75 16 . . 16 Critical Kills 1 | . . . . 1 . . . Critical Parts Destroyed . | . . . . . . . . Critical Strikes 1 | . . . . 1 . . . Destroy 1 | . . . . 1 . . . Melee Attacks . | . . . . . . . . Impact . | . . . . . . . . Slashing . | . . . . . . . . Piercing . | . . . . . . . . Sneak Attacks . | . . . . . . . . Combat Hostiles . | . . . . . . . . Follow-up Attacks . | . . . . . . . . Damage Inflicted 4044 | . 904 133 2198 449 . . 360 Guns 3312 | . 862 98 1696 296 . . 360 Cannons . | . . . . . . . . Explosions 629 | . . . 476 153 . . . Melee . | . . . . . . . . Ramming 103 | . 42 35 26 . . . . Kinetic 3189 | . 862 98 1696 296 . . 237 Thermal . | . . . . . . . . Explosive 629 | . . . 476 153 . . . Electromagnetic 123 | . . . . . . . 123 Impact . | . . . . . . . . Slashing . | . . . . . . . . Piercing . | . . . . . . . . Highest Corruption 2 | . 2 2 . . . . . Average Corruption 2 | . 2 2 . . . . . Corruption Purged . | . . . . . . . . Corruption Blocked . | . . . . . . . . Effects 21 | . 6 15 . . . . . Message Errors 5 | . 2 3 . . . . . Matter Fused 1 | . 1 . . . . . . Heat Flow Errors 4 | . 3 1 . . . . . Data Loss (minor) 7 | . . 7 . . . . . Data Loss (major) 3 | . . 3 . . . . . Misfires 1 | . . 1 . . . . . Overload Shots . | . . . . . . . . Overflow Damage . | . . . . . . . . Projectiles . | . . . . . . . . Explosions . | . . . . . . . . Melee . | . . . . . . . . Knockbacks 1 | . . 1 . . . . . Impact 1 | . . 1 . . . . . Kinetic . | . . . . . . . . Secondary . | . . . . . . . . Self-Inflicted Damage . | . . . . . . . . Shots . | . . . . . . . . Rammed 17 | . 9 4 4 . . . . Targets Rammed 20 | . 11 5 4 . . . . Kicked 2 | . 2 . . . . . . Crushed 1 | . . 1 . . . . . Highest Temperature 247 | . 247 203 19 . . . 37 Average Temperature 34 | . 60 99 3 . . . 13 Received Heat Transfer 1161 | . 243 81 552 42 . . 243 Siege Activations . | . . . . . . . . Robots Corrupted . | . . . . . . . . Combat Hostiles . | . . . . . . . . Parts Fried . | . . . . . . . . Impact Corruptions . | . . . . . . . . Robots Melted . | . . . . . . . . Combat Hostiles . | . . . . . . . . Parts Melted . | . . . . . . . . Heat Transferred . | . . . . . . . . Parts Sabotaged . | . . . . . . . . Parts Stolen . | . . . . . . . . Parts Stripped . | . . . . . . . . Power Chain Reactions . | . . . . . . . . Alert | -11 -10 -10 -9 -9 -9 -8 -8 ------- Run | Yrd Mat Min Mat Min Exi Min Mat Peak Influence 469 | . 239 156 469 380 . . 109 Initial 182 | . . . 16 182 . . . Average 126 | . 41 57 226 281 . . 22 Maximum Alert Level 2 | . 1 . 2 1 . . . Low Security (%) 71 | 100 97 100 39 20 . 100 100 Level 1 26 | . 2 . 53 79 . . . Level 2 2 | . . . 6 . . . . Level 3 . | . . . . . . . . Level 4 . | . . . . . . . . Level 5 . | . . . . . . . . High Security . | . . . . . . . . Max Security . | . . . . . . . . Squads Dispatched 8 | . 1 1 3 . . . 3 Investigation 2 | . 1 . . . . . 1 Extermination . | . . . . . . . . Reinforcement 4 | . . . 2 . . . 2 Assault 2 | . . 1 1 . . . . Garrison . | . . . . . . . . Intercept . | . . . . . . . . Searches Triggered . | . . . . . . . . Construction Impeded 1 | . . . 1 . . . . Haulers Reinforced . | . . . . . . . . Active Scanning Responses . | . . . . . . . . Cargo Convoy Interrupts . | . . . . . . . . Stealth | -11 -10 -10 -9 -9 -9 -8 -8 --------- Run | Yrd Mat Min Mat Min Exi Min Mat Distress Signals 5 | . 2 . 2 . . . 1 Communications Jammed . | . . . . . . . . Distress Signals . | . . . . . . . . Times Spotted 107 | . 21 10 49 12 . . 15 Peak Tracking Total 6 | . 5 4 6 3 . . 6 Tactical Retreats 3 | . . . 1 1 . . 1 Traps | -11 -10 -10 -9 -9 -9 -8 -8 ------- Run | Yrd Mat Min Mat Min Exi Min Mat Traps Triggered 3 | . 2 . . . . . 1 Indirectly . | . . . . . . . . Trap Hack Attempts . | . . . . . . . . Triggered . | . . . . . . . . Disarmed . | . . . . . . . . Reprogrammed . | . . . . . . . . Reused . | . . . . . . . . Traps Extracted . | . . . . . . . . Installed . | . . . . . . . . Triggered . | . . . . . . . . Machines | -11 -10 -10 -9 -9 -9 -8 -8 ---------- Run | Yrd Mat Min Mat Min Exi Min Mat Machines Disabled 3 | . 1 . 2 . . . . Max in Single Turn 2 | . 1 . 2 . . . . Machines Repaired . | . . . . . . . . Machines Dismantled . | . . . . . . . . Machines Sabotaged . | . . . . . . . . Overloaded Fab Kills . | . . . . . . . . Hacking | -11 -10 -10 -9 -9 -9 -8 -8 --------- Run | Yrd Mat Min Mat Min Exi Min Mat Machines Accessed 4 | . . 1 . . 2 . 1 Terminals 1 | . . . . . . . 1 Fabricators . | . . . . . . . . Repair Stations . | . . . . . . . . Recycling Units . | . . . . . . . . Scanalyzers . | . . . . . . . . Garrison Access . | . . . . . . . . Total Hacks 8 | . . 1 . . 3 . 4 Successful 5 | . . 1 . . 3 . 1 Failed 3 | . . . . . . . 3 Catastrophic . | . . . . . . . . Database Lockouts . | . . . . . . . . Manual 3 | . . . . . 1 . 2 Terminals 4 | . . . . . . . 4 Fabricators . | . . . . . . . . Repair Stations . | . . . . . . . . Recycling Units . | . . . . . . . . Scanalyzers . | . . . . . . . . Garrison Access . | . . . . . . . . Terminal Hacks 5 | . . 1 . . 3 . 1 Record 2 | . . . . . 2 . . Open Door 1 | . . 1 . . . . . Transport Status 1 | . . . . . . . 1 Derelict Proto ID Bank 1 | . . . . . 1 . . Fabricator Hacks . | . . . . . . . . Repair Station Hacks . | . . . . . . . . Recycling Unit Hacks . | . . . . . . . . Scanalyzer . | . . . . . . . . Garrison Access Hacks . | . . . . . . . . Unauthorized Hacks . | . . . . . . . . Terminals . | . . . . . . . . Fabricators . | . . . . . . . . Repair Stations . | . . . . . . . . Recycling Units . | . . . . . . . . Scanalyzers . | . . . . . . . . Garrison Access . | . . . . . . . . Data Cores Recovered 1 | . . . . . . . 1 Used 1 | . . . . . . . 1 Hacking Detections 1 | . . . . . . . 1 Full Trace Events . | . . . . . . . . Feedback Events . | . . . . . . . . Feedback Blocked . | . . . . . . . . Robot Schematics Acquired . | . . . . . . . . Robots Built . | . . . . . . . . Authchips . | . . . . . . . . Time . | . . . . . . . . Total Robot Build Rating . | . . . . . . . . Part Schematics Acquired . | . . . . . . . . Parts Built . | . . . . . . . . Authchips . | . . . . . . . . Time . | . . . . . . . . Total Part Build Rating . | . . . . . . . . Parts Repaired . | . . . . . . . . Time . | . . . . . . . . Parts Recycled . | . . . . . . . . Recycled Matter . | . . . . . . . . Retrieved Matter . | . . . . . . . . Retrieved Components . | . . . . . . . . Parts Scanalyzed . | . . . . . . . . Part Schematics Acquired . | . . . . . . . . Parts Damaged . | . . . . . . . . Bothacking | -11 -10 -10 -9 -9 -9 -8 -8 ------------ Run | Yrd Mat Min Mat Min Exi Min Mat Used RIF Installer . | . . . . . . . . Robots Hacked . | . . . . . . . . Non-combat . | . . . . . . . . Combat . | . . . . . . . . Robot Hacks Applied . | . . . . . . . . Relay Couplers Released . | . . . . . . . . Fabnet Peak Effective % . | . . . . . . . . Robots Rewired . | . . . . . . . . Allies Hacked . | . . . . . . . . Hacks Repelled . | . . . . . . . . Allies | -11 -10 -10 -9 -9 -9 -8 -8 -------- Run | Yrd Mat Min Mat Min Exi Min Mat Total Allies 5 | . . 4 . . . . 1 Largest Group 4 | . . 4 3 . . . 1 Highest-Rated Group 104 | . . 104 73 . . . 90 Highest-Rated Ally 90 | . . 31 31 . . . 90 Total Orders . | . . . . . . . . Ally Attacks 26 | . . 19 6 . . . 1 Total Damage 403 | . . 275 86 . . . 42 Kills 8 | . . 6 2 . . . . Allies Corrupted . | . . . . . . . . Allies Melted . | . . . . . . . . Field Lobotomies 1 | . . . . . . . 1 Intel | -11 -10 -10 -9 -9 -9 -8 -8 ------- Run | Yrd Mat Min Mat Min Exi Min Mat Robot Analysis Total . | . . . . . . . . Derelict Logs Recovered 1 | . . 1 . . . . . Drone Launches . | . . . . . . . . Drone Recoveries . | . . . . . . . . Exploration | -11 -10 -10 -9 -9 -9 -8 -8 ------------- Run | Yrd Mat Min Mat Min Exi Min Mat Turns Passed 7708 | 73 1582 1467 2544 467 870 290 415 Spaces Moved 4062 | 57 829 768 1316 239 544 177 132 Core 15 | 14 . . 1 . . . . Treads 3577 | . 694 768 1023 239 544 177 132 Legs 470 | 43 135 . 292 . . . . Wheels . | . . . . . . . . Hover . | . . . . . . . . Flight . | . . . . . . . . Fastest Speed 50 | 50 120 160 140 160 160 160 160 Average Speed 158 | 102 160 160 155 160 160 160 160 Slowest Speed 500 | 120 190 160 500 160 160 160 240 Overloaded Moves . | . . . . . . . . Propulsion Burnouts . | . . . . . . . . Robots Hopped . | . . . . . . . . Cave-ins Triggered . | . . . . . . . . Exploration Rate (%) 61 | 5 96 99 81 56 91 42 20 Regions Visited 7 Branch Regions 4 Pre-discovered Areas 1 | . . . . . 1 . . Known Exits Taken 5 | . . 1 1 1 1 1 . Unknown Exits Taken 2 | 1 1 . . . . . . Scrap Searched 3 | . . 3 . . . . . Spaces Dug . | . . . . . . . . Terrain Destroyed 56 | . . . 43 13 . . . Melee . | . . . . . . . . Projectile . | . . . . . . . . AOE 56 | . . . 43 13 . . . Terrain Rammed . | . . . . . . . . Walls Destroyed . | . . . . . . . . Machines Disabled . | . . . . . . . . Actions | -11 -10 -10 -9 -9 -9 -8 -8 --------- Run | Yrd Mat Min Mat Min Exi Min Mat Total 4905 | 71 970 986 1595 273 544 184 282 Wait 472 | . 53 194 107 . . 8 110 Move 4055 | 56 828 767 1315 238 543 176 132 Hop . | . . . . . . . . Pick Up 49 | 9 18 2 12 2 1 . 5 Fast Attach 9 | . . 1 8 . . . . Attach 26 | 6 2 2 5 4 . . 7 Detach . | . . . . . . . . Swap 14 | . 3 1 6 4 . . . Drop 18 | . 4 2 12 . . . . Fire 242 | . 51 12 126 25 . . 28 Melee . | . . . . . . . . Ram . | . . . . . . . . Kick 2 | . 2 . . . . . . Crush 18 | . 9 5 4 . . . . Escape Stasis . | . . . . . . . . Rewire . | . . . . . . . . Trap . | . . . . . . . . Miscellaneous . | . . . . . . . . Route ------- -11/Scrapyard -10/Materials (discovered 4 exits: *Mat x3 / *Min) -10/Mines (discovered 2 exits: *Mat x2) -9/Materials (discovered 4 exits: *Mat x3 / *Min) -9/Mines -9/Exiles -8/Mines -8/Materials (discovered 1 exit: [*Fac]) History --------- Turn | Location | Event 22 | -11/Scrapyard | Discovered new exit (range 15) 74 | -11/Scrapyard | Entered Materials 311 | -10/Materials | Build established: Mutant 744 | -10/Materials | Discovered new exit (range 6) 938 | -10/Materials | Discovered new exit (range 16) 971 | -10/Materials | Discovered new exit (range 16) 1341 | -10/Materials | Discovered new exit (range 5) 1656 | -10/Materials | Entered Mines 1714 | -10/Mines | Discovered new exit (range 6) 1739 | -10/Mines | Found the Drone Emporium 1747 | -10/Mines | Found Prototype Device 1790 | -10/Mines | Excavation squad dispatched 1790 | -10/Mines | A large section of the Mines collapsed 2133 | -10/Mines | Discovered new exit (range 15) 2151 | -10/Mines | Met a Derelict testing a Signal Generator 2198 | -10/Mines | Learned Materials stockpile data 2476 | -10/Mines | Core integrity fell below 50% 2656 | -10/Mines | Received a Mining Laser from a helpful Derelict 3025 | -10/Mines | Identified exit to Materials 3123 | -10/Mines | Entered Materials 3123 | -9/Materials | Accompanied by 3 allies 3123 | -9/Materials | Evolved 2 slots: Propulsion x2 3128 | -9/Materials | Led the pair of lost Derelicts to an unsafe place 3217 | -9/Materials | Lost 3 allies 3490 | -9/Materials | Discovered new exit (range 4) 3492 | -9/Materials | Identified exit to Materials 3563 | -9/Materials | Build established: Scavenger-Mutant 4155 | -9/Materials | Discovered new exit (range 9) 4166 | -9/Materials | Identified exit to Mines 4530 | -9/Materials | Discovered exit to Materials (range 13) 4844 | -9/Materials | Discovered exit to Materials (range 8) 5523 | -9/Materials | First assault squad dispatched 5523 | -9/Materials | Core integrity fell below 50% 5667 | -9/Materials | Entered Mines 5686 | -9/Mines | Assembled infested the area 6053 | -9/Mines | Lost 3 parts (3n) 6126 | -9/Mines | Deemed a non-threat by the Exiles lab entrance 6126 | -9/Mines | Discovered new exit (range 5) 6131 | -9/Mines | Identified exit to Exiles 6134 | -9/Mines | Entered Exiles 6171 | -9/Exiles | Met 8R-AWN 6200 | -9/Exiles | Met EX-HEX 6256 | -9/Exiles | Met EX-BIN 6277 | -9/Exiles | Aligned with FarCom system 6278 | -9/Exiles | Given EX-Vault access code 6315 | -9/Exiles | Opened EX-Vault 6328 | -9/Exiles | Found Field Lobotomy Kit 6364 | -9/Exiles | Warned to stay clear of 0b10 Research branches 6409 | -9/Exiles | Met EX-DEC 6473 | -9/Exiles | Discovered new exit (range 14) 6497 | -9/Exiles | Identified exit to Mines 6608 | -9/Exiles | Visited The Gauntlet 6942 | -9/Exiles | Learned location of Zion (-6) 7004 | -9/Exiles | Left Exiles lab with Field Lobotomy Kit 7004 | -9/Exiles | Entered Mines 7228 | -8/Mines | Discovered exit to Materials (range 5) 7294 | -8/Mines | Entered Materials 7294 | -8/Materials | Evolved 2 slots: Utility x2 7668 | -8/Materials | Lost 3 parts (1n2w) 7682 | -8/Materials | Discovered new exit (range 13) 7698 | -8/Materials | Core integrity fell below 50% 7703 | -8/Materials | Core integrity fell below 20% 7703 | -8/Materials | Assimilated H-61 Shepherd with FLK Orb 7709 | -8/Materials | Self-destructed Last Messages --------------- 07701_ The unstable cave ceiling collapses. 07701_ K-01 Serf collects debris. 07701_ U-05 Engineer lays Concrete. 07702_ R-06 Scavenger collects Corrupted Unknown Leg. 07702_ U-05 Engineer lays Concrete. 07702_ Knocked back. 07703_ H-61 Shepherd assimilated. 07703_ U-05 Engineer lays Concrete. 07706_ K-01 Serf collects debris. 07706_ U-05 Engineer builds a Wall. 07706_ U-05 Engineer lays Concrete. 07707_ Field Lobotomy Kit destroyed. 07707_ U-05 Engineer lays Concrete. 07708_ Slug penetrates G-47 Trooper. 07708_ G-47 Trooper suffers critical hit (Blast). 07708_ Destroyed Particle Gun. 07708_ G-47 Trooper knocked back. 07708_ U-05 Engineer lays Concrete. Map ----- +----------------------------------------------------+ | | | | | ?????????????????????????????????????????????????? | | ?????????????????????????????????????????????????? | | ?????????????????????????????????????????????????? | | ?????????????????????????????????????????????????? | | ?????????????????????????????????????????????????? | | ?????????????????????????????????????????????????? | | ??????????????????????????????? ???????????????? | | ??????????????????????#######?w ??????????????? | | ??????????????????????######## #?????????????? | | ???????????????Y??????## ####h ##?????????????? | | ??????????????????????## < T### ##?????????????? | | ??????????????????????## #### ##?????????????? | | ??????????????#???????## #### ##?????????????? | | ??????????????# ""???## #### ##?????????????? | | ??????????s???+ """? ## #### ##?????????????? | | ??????????s?s?# ? ## #### ######### ??? | | ??????????????# # ### ^^###########+#??? | | ??????????????# !! # ] ??? | | ??????????????#] ! # H ??? | | ??????????????# Y % ????? | | ???????????????? ##????????? | | ???????????????????# k # ##????????? | | ?????????????# # u ###????????? | | ?????????????# @=%] u # ##????????? | | ?????????????+ % !g u ###????????? | | ?????????????# [[! ###????????? | | ?????????????# [[! # *%=# [###### ???? | | ?????????????# [[ ?# g"""! ="## ##+##########???? | | ?????????????#####??## """ R"## % ! ##???? | | ????????????????????## """ """## = """ ##???? | | ????????????????????## a ## " "" ##???? | | ?????????????????????####+##+### """w" " ##???? | | ??????????????????????" # ### ##???? | | ??????????????????????? # #########/#######???? | | ??????????????????????? # ########[ ######???? | | ??????????????????????? + ##???????? | | ??????????????????????? # ! ##???????? | | ??????????????????????? # """"" ##???????? | | ???????????????????????## """"" ##???????? | | ???????????????????????## """"" ??????? | | ???????????????????????## ???? | | ???????????????????????## = ?? | | ???????????????????????## ######## ######### ###?? | | ???????????????????????## ######## ######## ## ?? | | ???????????????????????## ##????## ##???????###??? | | ???????????????????????## ##????## ##????????????? | | ???????????????????????## ##????## ??????????????? | | ???????????????????????## ##????## ??????????????? | +----------------------------------------------------+ Best States ------------- Heat Dissipation 31 Energy Generation 14 Energy Capacity 280 Matter Stores 300 Matter Capacity 300 Sight Range 16 Terrain Scan Density 10 Evasion (%) 55 Recoil Reduction 4 Offensive Hacking 10 Item Schematics ----------------- None Robot Schematics ------------------ None Fabricated ------------ Nothing Alien Tech Used ----------------- None Achievements -------------- None Challenges ------------ None Game ------ Seed MyomerActuatorMegatreads Manual? 0 Play Time 00:48:04 Cumulative 19.1 hours Start 2024.04.13 @ 10:26:58 End 2024.04.13 @ 12:13:57 Sessions 3 Manual Loads 0 Difficulty Rogue Special Mode None Game No. 18 Rogue 6 Adventurer 12 Explorer 0 Win Type - Total 0 Types 0/0/0/0/0/0/0/0/0 Lore% 14 Gallery% 21 Achievement% 21 Wizard Run 0 Options --------- Layout 2 ASCII 0 Keyboard 0 Movement Mouse Keybinds 0 Fullscreen 1 Font 24/Smallcaps Map View 50x44 Zoom Use 0% Tactical HUD 1 Map Filters NONE Filters NONE Steam 1 RUN: 26d74a6c-0f3b-4efd-bf71-6afdd62e70ad